lending/lending_fUSD_20250409
["ID","MTS","AMOUNT","RATE_DAILY","PERIOD"]
[357590703,1744207861269,-411.93827,0.00029899,7]
[357590704,1744207861280,-151.0,0.00029899,7]
[357590705,1744207861297,-151.0,0.00029899,7]
[357590706,1744207861308,-292.351399,0.00029899,7]
[357590707,1744207861318,-557.922233,0.00029899,7]
[357590708,1744207861328,-292.351399,0.00029899,7]
[357590709,1744207861338,-557.922233,0.00029899,7]
[357590710,1744207861348,-151.0,0.00029899,7]
[357590711,1744207861357,-151.0,0.00029899,7]
[357590712,1744207861367,-151.0,0.00029899,7]
[357590713,1744207861378,-151.0,0.00029899,7]
[357590714,1744207861390,-158.234544,0.00029899,7]
[357590715,1744207861399,-158.234544,0.00029899,7]
[357590716,1744207861409,-151.0,0.00029899,7]
[357590717,1744207861418,-151.0,0.00029899,7]
[357590718,1744207861428,-151.0,0.00029899,7]
[357590719,1744207861438,-151.0,0.00029899,7]
[357590720,1744207861447,-172.6684,0.00029899,7]
[357590721,1744207861458,-151.0,0.00029899,7]
[357590722,1744207861468,-151.0,0.00029899,7]
[357590723,1744207861478,-256.86243,0.00029899,7]
[357590724,1744207861489,-172.6684,0.00029899,7]
[357590725,1744207861500,-151.0,0.00029899,7]
[357590726,1744207861510,-151.0,0.00029899,7]
[357590727,1744207861520,-151.0,0.00029899,7]
[357590728,1744207861532,-271.535728,0.00029899,7]
[357590729,1744207861549,-151.0,0.00029899,7]
[357590730,1744207861560,-151.0,0.00029899,7]
[357590731,1744207861572,-275.108127,0.00029899,7]
[357590732,1744207861583,-275.108127,0.00029899,7]
[357590733,1744207861594,-151.0,0.00029899,7]
[357590734,1744207861605,-151.0,0.00029899,7]
[357590735,1744207861617,-2009.154449,0.00029899,7]
[357590736,1744207861629,-2009.154449,0.00029899,7]
[357590737,1744207861640,-2009.154449,0.00029899,7]
[357590738,1744207861649,-2009.154449,0.00029899,7]
[357590739,1744207861660,-403.192002,0.00029899,7]
[357590740,1744207861670,-153.277693,0.00029899,7]
[357590741,1744207861680,-403.192002,0.00029899,7]
[357590742,1744207861691,-224.956502,0.00029899,7]
[357590743,1744207861700,-224.956502,0.00029899,7]
[357590744,1744207861711,-151.0,0.00029899,7]
[357590745,1744207861721,-205.576565,0.00029899,7]
[357590746,1744207861731,-205.576565,0.00029899,7]
[357590747,1744207861741,-153.556503,0.00029899,7]
[357590748,1744207861751,-205.576565,0.00029899,7]
[357590749,1744207861760,-205.576565,0.00029899,7]
[357590750,1744207861771,-151.0,0.00029899,7]
[357590751,1744207861781,-151.0,0.00029899,7]
[357590752,1744207861798,-593.414501,0.00029899,7]
[357590753,1744207861808,-593.414501,0.00029899,7]
[357590754,1744207861819,-593.414501,0.00029899,7]
[357590755,1744207861829,-593.414501,0.00029899,7]
[357590756,1744207861839,-239.322161,0.00029899,7]
[357590757,1744207861849,-239.322161,0.00029899,7]
[357590758,1744207861860,-160.342555,0.00029899,7]
[357590759,1744207861871,-160.342555,0.00029899,7]
[357590760,1744207861882,-160.342555,0.00029899,7]
[357590761,1744207861892,-160.342555,0.00029899,7]
[357590762,1744207861903,-151.0,0.00029899,7]
[357590763,1744207861913,-151.0,0.00029899,7]
[357590764,1744207861924,-151.0,0.00029899,7]
[357590765,1744207861935,-151.0,0.00029899,7]
[357590766,1744207861944,-151.0,0.00029899,7]
[357590767,1744207861954,-151.0,0.00029899,7]
[357590768,1744207861964,-151.0,0.00029899,7]
[357590769,1744207862158,-3895.696537,0.00029899,7]
[357590770,1744207862168,-151.0,0.00029899,7]
[357590771,1744207862178,-3895.696537,0.00029899,7]
[357590772,1744207862188,-151.0,0.00029899,7]
[357590773,1744207862198,-151.0,0.00029899,7]
[357590774,1744207862207,-3895.696537,0.00029899,7]
[357590775,1744207862217,-3895.696537,0.00029899,7]
[357590776,1744207862227,-151.0,0.00029899,7]
[357590777,1744207862236,-151.0,0.00029899,7]
[357590778,1744207862246,-151.0,0.00029899,7]
[357590779,1744207862256,-151.0,0.00029899,7]
[357590780,1744207862265,-151.0,0.00029899,7]
[357590781,1744207862275,-172.180844,0.00029899,7]
[357590782,1744207862286,-170.909216,0.00029899,7]
[357590783,1744207862295,-170.909216,0.00029899,7]
[357590784,1744207862308,-170.909216,0.00029899,7]
[357590785,1744207862318,-170.909216,0.00029899,7]
[357590786,1744207862328,-151.0,0.00029899,7]
[357590787,1744207862337,-151.0,0.00029899,7]
[357590788,1744207862346,-151.0,0.00029899,7]
[357590789,1744207862356,-224.74205,0.00029899,7]
[357590790,1744207862366,-151.0,0.00029899,7]
[357590791,1744207862376,-151.0,0.00029899,7]
[357590792,1744207862388,-151.0,0.00029899,7]
[357590793,1744207862398,-151.0,0.00029899,7]
[357590794,1744207862407,-163.218037,0.00029899,7]
[357590795,1744207862416,-337.294523,0.00029899,7]
[357590796,1744207862426,-337.294523,0.00029899,7]
[357590797,1744207862435,-337.294523,0.00029899,7]
[357590798,1744207862445,-337.294523,0.00029899,7]
[357590799,1744207862455,-215.329886,0.00029899,7]
[357590800,1744207862464,-215.329886,0.00029899,7]
[357590801,1744207862474,-215.329886,0.00029899,7]
[357590802,1744207862483,-215.329886,0.00029899,7]
[357590803,1744207862493,-151.0,0.00029899,7]
[357590804,1744207862503,-151.0,0.00029899,7]
[357590805,1744207862512,-192.333825,0.00029899,7]
[357590806,1744207862522,-151.0,0.00029899,7]
[357590807,1744207862531,-151.0,0.00029899,7]
[357590808,1744207862544,-151.0,0.00029899,7]
[357590809,1744207862554,-271.926753,0.00029899,7]
[357590810,1744207862563,-1265.334784,0.00029899,7]
[357590811,1744207862573,-1265.334784,0.00029899,7]
[357590812,1744207862583,-1265.334784,0.00029899,7]
[357590813,1744207862593,-1265.334784,0.00029899,7]
[357590814,1744207862603,-154.992556,0.00029899,7]
[357590815,1744207862612,-151.0,0.00029899,7]
[357590816,1744207862622,-151.0,0.00029899,7]
[357590817,1744207862632,-304.935488,0.00029899,7]
[357590818,1744207862643,-304.935488,0.00029899,7]
[357590819,1744207862652,-304.935488,0.00029899,7]
[357590820,1744207862662,-304.935488,0.00029899,7]
[357590821,1744207862672,-156.331527,0.00029899,7]
[357590822,1744207862682,-1291.120705,0.00029899,7]
[357590823,1744207862692,-1291.120705,0.00029899,7]
[357590824,1744207862702,-8329.207123,0.00029899,7]
[357590825,1744207862712,-8329.207123,0.00029899,7]
[357590826,1744207862721,-1291.120705,0.00029899,7]
[357590827,1744207862731,-1291.120705,0.00029899,7]
[357590828,1744207862742,-151.0,0.00029899,7]
[357590829,1744207862751,-8329.207123,0.00029899,7]
[357590830,1744207862761,-151.0,0.00029899,7]
[357590831,1744207862771,-8329.207123,0.00029899,7]
[357590832,1744207862781,-151.0,0.00029899,7]
[357590833,1744207862795,-151.0,0.00029899,7]
[357590834,1744207862805,-291.474438,0.00029899,7]
[357590835,1744207862815,-291.474438,0.00029899,7]
[357590836,1744207862825,-291.474438,0.00029899,7]
[357590837,1744207862835,-291.474438,0.00029899,7]
[357590838,1744207862845,-151.0,0.00029899,7]
[357590839,1744207862856,-299.186234,0.00029899,7]
[357590840,1744207862866,-299.186234,0.00029899,7]
[357590841,1744207862876,-299.186234,0.00029899,7]
[357590842,1744207862885,-299.186234,0.00029899,7]
[357590843,1744207862895,-432.205425,0.00029899,7]
[357590844,1744207862904,-432.205425,0.00029899,7]
[357590845,1744207862914,-408.95187,0.00029899,7]
[357590846,1744207862924,-408.95187,0.00029899,7]
[357590847,1744207862933,-432.205425,0.00029899,7]
[357590848,1744207862943,-432.205425,0.00029899,7]
[357590849,1744207862953,-408.95187,0.00029899,7]
[357590850,1744207862963,-408.95187,0.00029899,7]
[357590851,1744207862973,-245.638279,0.00029899,7]
[357590852,1744207862982,-245.638279,0.00029899,7]
[357590853,1744207862992,-245.638279,0.00029899,7]
[357590854,1744207863002,-245.638279,0.00029899,7]
[357590855,1744207863012,-1455.498742,0.00029899,7]
[357590856,1744207863022,-262.254419,0.00029899,7]
[357590857,1744207863032,-1547.290713,0.00029899,7]
[357590858,1744207863047,-1547.290713,0.00029899,7]
[357590859,1744207863057,-1547.290713,0.00029899,7]
[357590860,1744207863068,-1547.290713,0.00029899,7]
[357590861,1744207863079,-151.0,0.00029899,7]
[357590862,1744207863089,-151.0,0.00029899,7]
[357590863,1744207863099,-151.0,0.00029899,7]
[357590864,1744207863109,-151.0,0.00029899,7]
[357590865,1744207863120,-151.0,0.00029899,7]
[357590866,1744207863130,-151.0,0.00029899,7]
[357590867,1744207863140,-151.0,0.00029899,7]
[357590868,1744207863150,-162.319674,0.00029899,7]
[357590869,1744207863161,-75568.97943871,0.000299,2]
[357590870,1744207863171,-900.0,0.000299,10]
[357590871,1744207863182,-1417.0,0.00029903,5]
[357590872,1744207863192,-9045.08023571,0.00029909,3]
[357590873,1744207863202,-2193.9525204,0.0003,2]
[357590874,1744207863213,-153.732409,0.0003,7]
[357590875,1744207863223,-150.0,0.0003,2]
[357590876,1744207863233,-151.0,0.00030137,7]
[357590877,1744207863243,-151.0,0.00030137,7]
[357590878,1744207863253,-151.0,0.00030137,7]
[357590879,1744207863263,-151.0,0.00030137,7]
[357590880,1744207863274,-151.0,0.00030137,7]
[357590881,1744207863286,-151.0,0.00030137,7]
[357590882,1744207863303,-151.0,0.00030137,7]
[357590883,1744207863316,-151.0,0.00030137,7]
[357590884,1744207863326,-199.28501,0.00030137,7]
[357590885,1744207863338,-150.0,0.00030279,2]
[357590886,1744207863348,-3958.0,0.00030279,2]
[357590887,1744207863359,-167.498,0.00030279,2]
[357590888,1744207863369,-852.0,0.00030279,2]
[357590889,1744207863381,-500.0,0.00030352,5]
[357590890,1744207863392,-1000.0,0.00030352,5]
[357590891,1744207863402,-1000.0,0.00030352,5]
[357590892,1744207863412,-366.0,0.00030613,30]
[357590893,1744207863423,-2959.09150357,0.00030709,2]
[357590894,1744207863434,-550.0,0.00031,2]
[357590895,1744207863444,-157.41,0.00031012,2]
[357590896,1744207863455,-325.3974731,0.00031012,2]
[357590897,1744207863466,-1384.22,0.00031365,2]
[357590898,1744207863476,-613.89,0.00031458,2]
[357590899,1744207863487,-150.0,0.00031649,2]
[357590900,1744207863497,-1000.0,0.00032034,2]
[357590901,1744207863507,-9045.08023571,0.00032269,3]
[357590902,1744207863517,-384.84097055,0.00032269,2]
[357590903,1744207863526,-156.286,0.00032279,2]
[357590904,1744207863539,-150.317,0.00032279,2]
[357590905,1744207863549,-574.0,0.00032279,2]
[357590906,1744207863559,-2044.0,0.00032279,2]
[357590907,1744207863570,-1286.0,0.00032279,2]
[357590908,1744207863580,-1326.0,0.00032279,2]
[357590909,1744207863590,-1278.0,0.00032279,2]
[357590910,1744207863600,-1436.0,0.00032279,2]
[357590911,1744207863610,-791.0,0.00032279,2]
[357590912,1744207863620,-907.0,0.00032279,2]
[357590913,1744207863630,-545.279,0.00032279,2]
[357590914,1744207863640,-4143.0,0.00032279,2]
[357590915,1744207863651,-151.0,0.00032279,7]
[357590916,1744207863662,-151.0,0.00032279,7]
[357590917,1744207863672,-151.0,0.00032279,7]
[357590918,1744207863683,-151.0,0.00032279,7]
[357590919,1744207863693,-151.0,0.00032279,7]
[357590920,1744207863704,-151.0,0.00032279,7]
[357590921,1744207863714,-151.0,0.00032279,7]
[357590922,1744207863724,-151.0,0.00032279,7]
[357590923,1744207863734,-292.351399,0.00032279,7]
[357590924,1744207863745,-557.922233,0.00032279,7]
[357590925,1744207863755,-292.351399,0.00032279,7]
[357590926,1744207863765,-557.922233,0.00032279,7]
[357590927,1744207863775,-151.0,0.00032279,7]
[357590928,1744207863788,-151.0,0.00032279,7]
[357590929,1744207863798,-151.0,0.00032279,7]
[357590930,1744207863809,-151.0,0.00032279,7]
[357590931,1744207863819,-158.234544,0.00032279,7]
[357590932,1744207863830,-158.234544,0.00032279,7]
[357590933,1744207863840,-151.0,0.00032279,7]
[357590934,1744207863852,-172.6684,0.00032279,7]
[357590935,1744207863862,-172.6684,0.00032279,7]
[357590936,1744207863873,-224.956502,0.00032279,7]
[357590937,1744207863883,-224.956502,0.00032279,7]
[357590938,1744207863893,-157.344022,0.00032279,7]
[357590939,1744207863903,-1320.0,0.00032286,2]
[357590940,1744207863914,-151.0,0.00032508,7]
[357590941,1744207863924,-9045.08023571,0.00032636,3]
[357590942,1744207863934,-217.05,0.00032646,2]
[357590943,1744207863945,-268.11,0.00032646,2]
[357590944,1744207863955,-2000.0,0.00032872,4]
[357590945,1744207863965,-200.0,0.00032877,60]
[357590946,1744207863975,-600.0,0.00033,2]
[357590947,1744207863985,-150.0,0.00033018,2]
[357590948,1744207863995,-1743.862,0.000332,35]
[357590949,1744207864005,-191.55,0.00033272,120]
[357590950,1744207864015,-3958.0,0.00033279,2]
[357590951,1744207864025,-151.0,0.00033279,2]
[357590952,1744207864036,-646.90698728,0.00033303,2]
[357590953,1744207864046,-2959.09150357,0.00033412,2]
[357590954,1744207864056,-1384.22,0.00033629,2]
[357590955,1744207864066,-157.41,0.00033831,2]
[357590956,1744207864075,-2597.6907634,0.00033959,4]
[357590957,1744207864085,-150.0,0.00034101,2]
[357590958,1744207864095,-150.0,0.00034113,2]
[357590959,1744207864105,-150.0,0.00034284,2]
[357590960,1744207864115,-1000.0,0.000343,7]
[357590961,1744207864125,-1000.0,0.000343,7]
[357590962,1744207864134,-1000.0,0.00034313,2]
[357590963,1744207864144,-150.0,0.00034344,2]
[357590964,1744207864154,-150.0,0.00034388,2]
[357590965,1744207864164,-150.0,0.00034392,2]
[357590966,1744207864174,-150.0,0.00034392,2]
[357590967,1744207864184,-9045.08023571,0.00034437,3]
[357590968,1744207864194,-500.0,0.00034446,120]
[357590969,1744207864204,-500.0,0.00034446,120]
[357590970,1744207864215,-500.0,0.00034446,120]
[357590971,1744207864225,-189.70874149,0.00034446,120]
[357590972,1744207864235,-150.0,0.00034457,2]
[357590973,1744207864245,-150.0,0.00034462,2]
[357590974,1744207864255,-150.0,0.00034475,2]
[357590975,1744207864264,-150.0,0.00034476,2]
[357590976,1744207864275,-150.0,0.00034476,2]
[357590977,1744207864288,-150.0,0.00034479,2]
[357590978,1744207864300,-150.0,0.0003449,2]
[357590979,1744207864310,-150.0,0.00034511,2]
[357590980,1744207864320,-150.0,0.00034516,2]
[357590981,1744207864331,-150.0,0.00034521,2]
[357590982,1744207864343,-150.0,0.00034521,2]
[357590983,1744207864354,-1000.0,0.00034528,2]
[357590984,1744207864366,-150.0,0.0003454,2]
[357590985,1744207864377,-150.0,0.00034542,2]
[357590986,1744207864388,-150.0,0.00034549,2]
[357590987,1744207864399,-150.0,0.00034567,2]
[357590988,1744207864409,-150.0,0.00034579,2]
[357590989,1744207864419,-150.0,0.00034592,2]
[357590990,1744207864429,-150.0,0.00034601,2]
[357590991,1744207864439,-1000.0,0.00034603,2]
[357590992,1744207864449,-150.0,0.00034606,2]
[357590993,1744207864459,-150.0,0.00034607,2]
[357590994,1744207864468,-150.0,0.00034609,2]
[357590995,1744207864479,-150.0,0.0003461,2]
[357590996,1744207864489,-150.0,0.00034616,2]
[357590997,1744207864499,-150.0,0.00034624,2]
[357590998,1744207864509,-150.0,0.00034628,2]
[357590999,1744207864519,-1000.0,0.00034641,2]
[357591000,1744207864529,-150.0,0.00034642,2]
[357591001,1744207864545,-150.0,0.0003465,2]
[357591002,1744207864555,-156.85558487,0.00034661,2]
[357591003,1744207864565,-150.0,0.00034661,2]
[357591004,1744207864576,-150.0,0.00034669,2]
[357591005,1744207864585,-150.0,0.00034672,2]
[357591006,1744207864595,-150.0,0.00034684,2]
[357591007,1744207864605,-150.0,0.00034689,2]
[357591008,1744207864614,-1000.0,0.00034692,2]
[357591009,1744207864623,-150.0,0.00034696,2]
[357591010,1744207864633,-150.0,0.00034708,2]
[357591011,1744207864642,-150.0,0.00034714,2]
[357591012,1744207864652,-1000.0,0.00034717,2]
[357591013,1744207864712,-158.42242407,0.00034718,2]
[357591014,1744207864722,-150.0,0.00034726,2]
[357591015,1744207864732,-150.0,0.00034735,2]
[357591016,1744207864741,-150.0,0.00034738,2]
[357591017,1744207864752,-150.0,0.00034757,2]
[357591018,1744207864762,-150.0,0.00034767,2]
[357591019,1744207864772,-150.0,0.00034771,2]
[357591020,1744207864782,-150.0,0.00034775,2]
[357591021,1744207864798,-150.0,0.00034778,2]
[357591022,1744207864808,-150.0,0.00034778,2]
[357591023,1744207864818,-150.0,0.00034781,2]
[357591024,1744207864828,-150.0,0.00034795,2]
[357591025,1744207864837,-150.0,0.00034815,2]
[357591026,1744207864847,-150.0,0.00034816,2]
[357591027,1744207864857,-150.0,0.00034823,2]
[357591028,1744207864867,-150.0,0.00034827,2]
[357591029,1744207864878,-239.322161,0.0003483,7]
[357591030,1744207864888,-3895.696537,0.0003483,7]
[357591031,1744207864898,-3895.696537,0.0003483,7]
[357591032,1744207864908,-151.0,0.0003483,7]
[357591033,1744207864917,-150.0,0.0003483,2]
[357591034,1744207864927,-403.192002,0.00034833,7]
[357591035,1744207864937,-403.192002,0.00034833,7]
[357591036,1744207864946,-150.0,0.00034835,2]
[357591037,1744207864956,-150.0,0.00034838,2]
[357591038,1744207864967,-160.342555,0.00034839,7]
[357591039,1744207864977,-160.342555,0.00034839,7]
[357591040,1744207864987,-151.0,0.00034839,7]
[357591041,1744207864997,-151.0,0.0003484,7]
[357591042,1744207865007,-151.0,0.0003484,7]
[357591043,1744207865017,-151.0,0.0003484,7]
[357591044,1744207865027,-2009.154449,0.0003484,7]
[357591045,1744207865041,-2009.154449,0.0003484,7]
[357591046,1744207865051,-205.576565,0.0003484,7]
[357591047,1744207865061,-205.576565,0.0003484,7]
[357591048,1744207865071,-151.0,0.0003484,7]
[357591049,1744207865081,-593.414501,0.0003484,7]
[357591050,1744207865090,-593.414501,0.0003484,7]
[357591051,1744207865100,-151.0,0.0003484,7]
[357591052,1744207865110,-1547.290713,0.0003484,7]
[357591053,1744207865120,-1547.290711,0.0003484,7]
[357591054,1744207865130,-151.0,0.0003484,7]
[357591055,1744207865139,-151.0,0.0003484,7]
[357591056,1744207865148,-150.0,0.00034842,2]
[357591057,1744207865158,-150.0,0.00034842,2]
[357591058,1744207865168,-150.0,0.00034845,2]
[357591059,1744207865178,-150.0,0.00034845,2]
[357591060,1744207865187,-150.0,0.00034848,2]
[357591061,1744207865197,-150.0,0.00034853,2]
[357591062,1744207865207,-150.0,0.00034855,2]
[357591063,1744207865217,-1000.0,0.00034861,2]
[357591064,1744207865226,-275.108127,0.00034873,7]
[357591065,1744207865236,-150.0,0.00034874,2]
[357591066,1744207865246,-150.0,0.00034893,2]
[357591067,1744207865255,-150.0,0.00034895,2]
[357591068,1744207865265,-150.0,0.00034898,2]
[357591069,1744207865275,-150.0,0.00034899,2]
[357591070,1744207865287,-253.79654,0.00034914,7]
[357591071,1744207865298,-151.0,0.00034914,7]
[357591072,1744207865308,-275.59456,0.00034914,7]
[357591073,1744207865317,-151.0,0.00034914,7]
[357591074,1744207865326,-164.326403,0.00034914,7]
[357591075,1744207865336,-151.0,0.00034914,7]
[357591076,1744207865345,-170.909216,0.00034914,7]
[357591077,1744207865355,-170.909216,0.00034914,7]
[357591078,1744207865364,-151.0,0.00034914,7]
[357591079,1744207865373,-151.0,0.00034914,7]
[357591080,1744207865385,-337.294523,0.00034914,7]
[357591081,1744207865394,-337.294523,0.00034914,7]
[357591082,1744207865403,-215.329886,0.00034914,7]
[357591083,1744207865412,-215.329886,0.00034914,7]
[357591084,1744207865422,-151.0,0.00034914,7]
[357591085,1744207865431,-151.0,0.00034914,7]
[357591086,1744207865441,-1265.334784,0.00034914,7]
[357591087,1744207865450,-1265.334784,0.00034914,7]
[357591088,1744207865460,-151.0,0.00034914,7]
[357591089,1744207865469,-304.935488,0.00034914,7]
[357591090,1744207865479,-304.935488,0.00034914,7]
[357591091,1744207865488,-1291.120705,0.00034914,7]
[357591092,1744207865498,-8329.207123,0.00034914,7]
[357591093,1744207865507,-1291.120705,0.00034914,7]
[357591094,1744207865516,-151.0,0.00034914,7]
[357591095,1744207865526,-8329.207123,0.00034914,7]
[357591096,1744207865540,-151.0,0.00034914,7]
[357591097,1744207865549,-291.474438,0.00034914,7]
[357591098,1744207865559,-291.474438,0.00034914,7]
[357591099,1744207865569,-299.186234,0.00034914,7]
[357591100,1744207865579,-299.186234,0.00034914,7]
[357591101,1744207865588,-432.205425,0.00034914,7]
[357591103,1744207865598,-408.95187,0.00034914,7]
[357591104,1744207865608,-432.205425,0.00034914,7]
[357591105,1744207865617,-408.95187,0.00034914,7]
[357591106,1744207865626,-245.638279,0.00034914,7]
[357591107,1744207865636,-245.638279,0.00034914,7]
[357591108,1744207865645,-151.0,0.00034914,7]
[357591109,1744207865655,-150.0,0.00034915,2]
[357591110,1744207865664,-150.0,0.00034915,2]
[357591111,1744207865674,-150.0,0.00034925,2]
[357591112,1744207865683,-150.0,0.00034928,2]
[357591113,1744207865693,-628.24531354,0.00034935,2]
[357591114,1744207865703,-150.0,0.00034937,2]
[357591115,1744207865712,-150.0,0.00034944,2]
[357591116,1744207865722,-150.0,0.00034959,2]
[357591117,1744207865732,-150.0,0.00034968,2]
[357591118,1744207865742,-150.0,0.00034968,2]
[357591119,1744207865751,-150.0,0.00034968,2]
[357591120,1744207865761,-150.0,0.00034971,2]
[357591121,1744207865771,-1000.0,0.00034976,2]
[357591122,1744207865780,-150.0,0.00034976,2]
[357591123,1744207865792,-150.0,0.00034977,2]
[357591124,1744207865802,-1000.0,0.00034979,2]
[357591125,1744207865812,-150.0,0.0003498,2]
[357591126,1744207865822,-150.0,0.0003498,2]
[357591127,1744207865832,-150.0,0.00034985,2]
[357591128,1744207865841,-150.0,0.00034993,2]
[357591129,1744207865852,-150.0,0.00034993,2]
[357591130,1744207865861,-151.0,0.00034996,7]
[357591131,1744207865871,-292.351399,0.00034996,7]
[357591132,1744207865881,-557.922233,0.00034996,7]
[357591133,1744207865890,-292.351399,0.00034996,7]
[357591134,1744207865899,-557.922233,0.00034996,7]
[357591135,1744207865909,-151.0,0.00034996,7]
[357591136,1744207865918,-151.0,0.00034996,7]
[357591137,1744207865927,-151.0,0.00034996,7]
[357591138,1744207865937,-151.0,0.00034996,7]
[357591139,1744207865947,-158.234544,0.00034996,7]
[357591140,1744207865957,-158.234544,0.00034996,7]
[357591141,1744207865966,-151.0,0.00034996,7]
[357591142,1744207865976,-160.084196,0.00034996,7]
[357591143,1744207865985,-151.0,0.00034996,7]
[357591144,1744207865995,-172.6684,0.00034996,7]
[357591145,1744207866003,-172.6684,0.00034996,7]
[357591146,1744207866013,-151.0,0.00034996,7]
[357591147,1744207866022,-151.0,0.00034996,7]
[357591148,1744207866032,-151.0,0.00034996,7]
[357591149,1744207866047,-2009.154449,0.00034996,7]
[357591150,1744207866056,-2009.154449,0.00034996,7]
[357591151,1744207866066,-403.192002,0.00034996,7]
[357591152,1744207866075,-403.192002,0.00034996,7]
[357591153,1744207866084,-224.956502,0.00034996,7]
[357591154,1744207866093,-224.956502,0.00034996,7]
[357591155,1744207866103,-500.42174093,0.00035,2]
[357591156,1744207866112,-275.0,0.00035,2]
[357591157,1744207866122,-297.35157178,0.00035,2]
[357591158,1744207866131,-353.55,0.00035,2]
[357591159,1744207866140,-159.88,0.00035,2]
[357591160,1744207866149,-650.0,0.00035,2]
[357591161,1744207866158,-200.0,0.00035,5]
[357591162,1744207866168,-222.4738,0.00035,5]
[357591163,1744207866177,-159.0,0.00035,31]
[357591164,1744207866186,-500.0,0.00035,82]
[357591165,1744207866196,-150.0,0.00035,2]
[357591166,1744207866206,-150.0,0.00035007,2]
[357591167,1744207866216,-150.0,0.00035007,2]
[357591168,1744207866225,-1010.24143362,0.0003501,2]
[357591169,1744207866235,-150.0,0.0003502,2]
[357591170,1744207866244,-150.0,0.00035021,2]
[357591171,1744207866253,-151.0,0.00035024,7]
[357591172,1744207866264,-150.0,0.00035024,2]
[357591173,1744207866273,-151.0,0.00035025,7]
[357591174,1744207866283,-388.185167,0.00035025,7]
[357591175,1744207866298,-388.185167,0.00035025,7]
[357591176,1744207866312,-150.0,0.00035026,2]
[357591177,1744207866322,-150.0,0.00035029,2]
[357591178,1744207866331,-205.576565,0.0003503,7]
[357591179,1744207866340,-205.576565,0.0003503,7]
[357591180,1744207866350,-151.0,0.0003503,7]
[357591181,1744207866377,-593.414501,0.0003503,7]
[357591182,1744207866386,-593.414501,0.0003503,7]
[357591183,1744207866395,-151.0,0.0003503,7]
[357591184,1744207866405,-1000.0,0.00035031,2]
[357591185,1744207866415,-150.0,0.00035033,2]
[357591186,1744207866424,-150.0,0.00035036,2]
[357591187,1744207866434,-151.0,0.00035037,7]
[357591188,1744207866443,-151.0,0.00035037,7]
[357591189,1744207866453,-151.0,0.00035037,7]
[357591190,1744207866462,-271.298567,0.00035037,7]
[357591191,1744207866472,-151.0,0.00035037,7]
[357591192,1744207866482,-151.0,0.00035037,7]
[357591193,1744207866491,-151.0,0.00035037,7]
[357591194,1744207866501,-151.0,0.00035037,7]
[357591195,1744207866511,-151.0,0.00035037,7]
[357591196,1744207866521,-151.0,0.00035037,7]
[357591197,1744207866530,-150.0,0.00035041,2]
[357591198,1744207866543,-150.0,0.00035041,2]
[357591199,1744207866552,-150.0,0.00035041,2]
[357591200,1744207866561,-150.0,0.00035041,2]
[357591201,1744207866571,-150.0,0.00035041,2]
[357591202,1744207866580,-286.19023269,0.00035041,10]
[357591203,1744207866589,-151.0,0.00035042,7]